fUSD/lending_fUSD_20240607
["ID","MTS","AMOUNT","RATE_DAILY","PERIOD"]
[328782008,1717787439923,-174.98775606,0.000139,2]
[328782009,1717787439933,-16181.26043662,0.000139,2]
[328782010,1717787439943,-180.60886659,0.00013912,2]
[328782011,1717787439953,-17459.21988459,0.00013912,2]
[328782012,1717787439963,-3000.0,0.00013912,2]
[328782013,1717787439974,-382.48347739,0.00013965,2]
[328782014,1717787439984,-242.824812,0.00013973,2]
[328782015,1717787439994,-15537.2016984,0.00013987,2]
[328782016,1717787440004,-192474.1504426,0.00013987,2]
[328782017,1717787440014,-152.35,0.0001399,2]
[328782018,1717787440025,-270.73204839,0.00013997,2]
[328782019,1717787440035,-190.95162644,0.00013997,2]
[328782020,1717787440045,-7538.65976902,0.00013997,2]
[328782021,1717787440056,-191.51502471,0.00013997,2]
[328782022,1717787440066,-337.31087806,0.00013997,2]
[328782023,1717787440076,-205.94174335,0.00013997,2]
[328782024,1717787440086,-1697.99404666,0.00013997,2]
[328782025,1717787440097,-272.6594891,0.00013997,2]
[328782026,1717787440108,-156.47064893,0.00013997,2]
[328782027,1717787440119,-155.85880676,0.00013997,2]
[328782028,1717787440130,-242.62919792,0.00013998,2]
[328782029,1717787440140,-235.35437639,0.00013998,2]
[328782030,1717787440152,-155.35841676,0.00013998,2]
[328782031,1717787440167,-158.45556091,0.00013998,2]
[328782032,1717787440177,-2094.17033994,0.00013998,2]
[328782033,1717787440187,-1000.0,0.00013998,5]
[328782034,1717787440197,-1000.0,0.00013998,5]
[328782035,1717787440207,-1000.0,0.00013998,5]
[328782036,1717787440216,-246.15590618,0.00013999,5]
[328782037,1717787440226,-150.0,0.00013999,2]
[328782038,1717787440235,-274241.38344455,0.00014,2]
[328782039,1717787440248,-1946.73908806,0.00014,2]
[328782040,1717787440261,-907.87201028,0.00014,2]
[328782041,1717787440477,-34577.9163048,0.00014,2]
[328782042,1717787440490,-35084.54329317,0.00014,2]
[328782043,1717787440502,-8919.63302058,0.00014,2]
[328782068,1717787445098,-157.78083256,0.000139,2]
[328782069,1717787445109,-1649.7024683,0.00014,2]
[328782070,1717787445121,-3449.95,0.00014,2]
[328782071,1717787445132,-138000.0,0.00014,2]
[328782072,1717787446097,-5064.65412597,0.00014,2]
[328782073,1717787446110,-4756.67616467,0.00014,2]
[328782074,1717787446122,-307.18813471,0.00014,2]
[328782075,1717787446134,-825.56263214,0.00014,2]
[328782076,1717787446147,-1606.0,0.00014,2]
[328782077,1717787446161,-269.07549999,0.00014,2]
[328782078,1717787447255,-8364.0002197,0.00014,2]
[328782090,1717787447267,-10717.00002,0.00014,2]
[328782096,1717787447279,-317.6472,0.00014,2]
[328782117,1717787447375,-1950.0,0.00014,2]
[328782119,1717787447387,-523.74751985,0.00014,2]
[328782137,1717787448308,-737.38388053,0.00014,2]
[328782139,1717787448322,-6503.83148737,0.00014,2]
[328782140,1717787448906,-3553383.90041,0.00014,2]
[328782141,1717787448916,-2000.0,0.00014,2]
[328782142,1717787448925,-200.0,0.00014,2]
[328782143,1717787448934,-2000.0,0.0001414,2]
[328782144,1717787448943,-200.0,0.0001414,2]
[328782145,1717787448952,-2000.0,0.00014281,2]
[328782146,1717787448961,-200.0,0.00014281,2]
[328782147,1717787448971,-193.83670901,0.0001433,2]
[328782148,1717787448980,-2000.0,0.00014424,2]
[328782149,1717787448989,-200.0,0.00014424,2]
[328782150,1717787448999,-2000.0,0.00014568,2]
[328782151,1717787449008,-200.0,0.00014568,2]
[328782152,1717787449017,-242.824812,0.00014795,2]
[328782153,1717787449027,-526.78,0.00014904,4]
[328782154,1717787449036,-538.60151429,0.00014998,2]
[328782155,1717787449045,-456.28337919,0.00014998,2]
[328782156,1717787449054,-164.99574182,0.00014998,2]
[328782157,1717787449068,-182.46062707,0.00014998,2]
[328782158,1717787449078,-178.47853186,0.00014998,2]
[328782159,1717787449088,-312.72493565,0.00014998,2]
[328782160,1717787449097,-469972.40623774,0.00015,2]
[328782161,1717787449107,-165.66,0.00015143,2]
[328782162,1717787449116,-165.66,0.00015219,2]
[328782163,1717787449126,-17459.21988457,0.00015365,2]
[328782164,1717787449135,-839.74,0.00015616,2]
[328782165,1717787449145,-242.824812,0.00015616,2]
[328782166,1717787449154,-526.78,0.0001589,5]
[328782167,1717787449165,-910.47351509,0.00016165,2]
[328782168,1717787449177,-242.824812,0.00016438,2]
[328782169,1717787449186,-196.35,0.00016438,2]
[328782170,1717787449195,-218.09054492,0.00016567,2]
[328782171,1717787449205,-17459.21988457,0.00016819,2]
[328782172,1717787449214,-162.00616074,0.000169,2]
[328782173,1717787449224,-527.01,0.00016904,6]
[328782174,1717787449233,-157.0308117,0.00017022,2]
[328782175,1717787449243,-508.43079069,0.00017022,2]
[328782176,1717787449253,-455.70457802,0.00017022,2]
[328782177,1717787449263,-550.29435515,0.00017022,2]
[328782178,1717787449272,-957.37362739,0.00017022,2]
[328782179,1717787449281,-572.62909829,0.00017022,7]
[328782180,1717787449291,-155.36916986,0.00017022,2]
[328782181,1717787449300,-164.2826579,0.00017022,2]
[328782182,1717787449311,-335.35878598,0.00017022,2]
[328782183,1717787449321,-156.57298962,0.00017022,2]
[328782184,1717787449331,-2148.80553222,0.00017022,2]
[328782185,1717787449342,-155.97244044,0.00017022,2]
[328782186,1717787449353,-19894.85132513,0.00017225,2]
[328782187,1717787449363,-242.824812,0.0001726,2]
[328782188,1717787449372,-359.0355551,0.00017866,2]
[328782189,1717787449382,-839.74,0.0001788,2]
[328782190,1717787449392,-154.87,0.00017974,2]
[328782191,1717787449402,-651.13893107,0.00018,2]
[328782192,1717787449412,-242.824812,0.00018082,2]
[328782193,1717787449422,-17459.21988457,0.00018272,2]
[328782194,1717787449431,-2000.0,0.00018356,3]
[328782195,1717787449441,-910.47351509,0.00018432,2]
[328782196,1717787449451,-2309.56445021,0.0001844,2]
[328782197,1717787449460,-169.66,0.00018894,2]
[328782198,1717787449469,-242.824812,0.00018904,2]
[328782199,1717787449479,-3000.0,0.00018912,2]
[328782200,1717787449488,-155.0,0.00019,2]
[328782201,1717787449498,-366.92868183,0.00019178,2]
[328782202,1717787449507,-491.23513164,0.00019178,2]
[328782203,1717787449516,-155.06417439,0.00019178,2]
[328782204,1717787449526,-393.59023817,0.00019178,2]
[328782205,1717787449535,-500.0,0.00019178,2]
[328782206,1717787449545,-166.57215857,0.00019178,2]
[328782207,1717787449555,-500.0,0.00019178,2]
[328782208,1717787449566,-422.73611182,0.00019178,2]
[328782209,1717787449727,-564.81,0.00019178,2]
[328782210,1717787449736,-218.09054492,0.00019233,2]
[328782211,1717787449746,-287.0,0.0001963,15]
[328782212,1717787449756,-287.0,0.0001964,15]
[328782213,1717787449766,-287.0,0.0001965,15]
[328782214,1717787449775,-284.0,0.0001966,15]
[328782215,1717787449785,-284.0,0.0001967,15]
[328782216,1717787449795,-150.5,0.00019676,15]
[328782217,1717787449804,-150.5,0.0001968,15]
[328782218,1717787449818,-284.0,0.0001968,15]
[328782219,1717787449828,-155.55,0.00019686,15]
[328782220,1717787449838,-150.5,0.00019696,15]
[328782221,1717787449848,-150.5,0.00019706,15]
[328782222,1717787449859,-150.5,0.00019716,15]
[328782223,1717787449869,-152.0,0.00019716,15]
[328782224,1717787449881,-154.38,0.00019716,15]
[328782225,1717787449891,-150.8,0.00019716,15]
[328782226,1717787449901,-17459.21988457,0.00019726,2]
[328782227,1717787449911,-242.824812,0.00019726,2]
[328782228,1717787449921,-1285.04899094,0.0002,2]
[328782229,1717787449931,-497.71766581,0.0002,10]
[328782230,1717787449940,-953.62985064,0.0002,2]
[328782231,1717787449950,-155.0,0.0002,4]
[328782232,1717787449959,-1980.08690757,0.0002,2]
[328782233,1717787449969,-226.6238354,0.000201,2]
[328782234,1717787449979,-839.74,0.00020144,2]
[328782235,1717787449988,-242.824812,0.00020548,2]
[328782236,1717787449997,-910.47351509,0.00020698,2]
[328782237,1717787450007,-500.0,0.00021,2]
[328782238,1717787450017,-500.0,0.00021,2]
[328782239,1717787450027,-17459.21988457,0.00021179,2]
[328782240,1717787450037,-242.824812,0.0002137,2]
[328782241,1717787450046,-359.0355551,0.00021832,2]
[328782242,1717787450055,-218.09054492,0.000219,2]
[328782243,1717787450069,-573.0,0.000219,2]
[328782244,1717787450080,-16181.2604366,0.000219,2]
[328782245,1717787450090,-157.78083256,0.000219,2]
[328782246,1717787450099,-192.05,0.00021918,2]
[328782247,1717787450108,-417.12,0.00021918,2]
[328782248,1717787450118,-150.0,0.00021918,2]
[328782249,1717787450127,-150.0,0.00021918,2]
[328782250,1717787450136,-150.0,0.00021918,2]
[328782251,1717787450146,-150.0,0.00021918,2]
[328782252,1717787450155,-13316.0,0.00022182,2]
[328782253,1717787450168,-839.74,0.00022407,2]
[328782254,1717787450177,-167.48,0.00022518,2]
[328782255,1717787450187,-17459.21988457,0.00022633,2]
[328782256,1717787450196,-910.47351509,0.00022965,2]
[328782257,1717787450206,-155.58,0.00023035,2]
[328782258,1717787450215,-155.58,0.00023041,2]
[328782259,1717787450224,-155.58,0.00023048,2]
[328782260,1717787450233,-155.58,0.00023055,2]
[328782261,1717787450243,-155.58,0.00023062,2]
[328782262,1717787450254,-155.58,0.00023068,2]
[328782263,1717787450263,-155.58,0.00023075,2]
[328782264,1717787450272,-155.58,0.00023082,2]
[328782265,1717787450282,-155.58,0.00023089,2]
[328782266,1717787450291,-155.58,0.00023095,2]
[328782267,1717787450310,-155.58,0.00023102,2]
[328782268,1717787450324,-155.58,0.00023109,2]
[328782269,1717787450334,-155.58,0.00023116,2]
[328782270,1717787450344,-155.58,0.00023123,2]
[328782271,1717787450353,-155.58,0.00023129,2]
[328782272,1717787450363,-155.58,0.00023136,2]
[328782273,1717787450372,-155.58,0.00023143,2]
[328782274,1717787450382,-155.58,0.0002315,2]
[328782275,1717787450392,-324.03662243,0.00023178,2]
[328782276,1717787450403,-946.99474862,0.00023178,2]
[328782277,1717787450413,-16449.12339482,0.000236,2]
[328782278,1717787450423,-3000.0,0.00023912,2]
[328782279,1717787450433,-12045.2671056,0.00024,3]
[328782280,1717787450443,-3296.37305938,0.00024,15]
[328782281,1717787450452,-17459.21988457,0.00024086,2]
[328782282,1717787450462,-221.64,0.00024384,2]
[328782283,1717787450472,-155.46,0.00024384,2]
[328782284,1717787450482,-161.29,0.00024384,2]
[328782285,1717787450493,-218.09054492,0.00024567,2]
[328782286,1717787450502,-258.83,0.00024575,2]
[328782287,1717787450512,-380.0,0.00024586,2]
[328782288,1717787450521,-839.74,0.00024671,2]
[328782289,1717787450532,-573.0,0.000247,2]
[328782290,1717787450541,-3654.33421936,0.00024798,2]
[328782291,1717787450551,-3654.33421931,0.00024798,2]
[328782292,1717787450564,-3654.33421931,0.00024798,2]
[328782293,1717787450574,-3654.33421931,0.00024798,2]
[328782294,1717787450584,-3654.33421931,0.00024798,2]
[328782295,1717787450594,-3654.33421931,0.00024798,2]
[328782296,1717787450604,-3654.33421931,0.00024798,2]
[328782297,1717787450613,-358.16658243,0.00024799,2]
[328782298,1717787450623,-1397.49,0.00024851,2]
[328782299,1717787450633,-1000.0,0.00024851,2]
[328782300,1717787450642,-250.0,0.00024851,2]
[328782301,1717787450652,-3000.0,0.000249,2]
[328782302,1717787450661,-1276.38374304,0.00025,2]
[328782303,1717787450671,-155.0,0.00025,2]
[328782304,1717787450681,-500.0,0.00025,2]
[328782305,1717787450691,-1250.0,0.00025,2]
[328782306,1717787450701,-325.85502295,0.00025,2]
[328782307,1717787450711,-5000.0,0.000251,10]
[328782308,1717787450721,-910.47351509,0.00025231,2]
[328782309,1717787450730,-833.0,0.000253,2]
[328782310,1717787450740,-7778.0,0.000254,3]
[328782311,1717787450749,-300.0,0.000255,2]
[328782312,1717787450759,-17459.21988457,0.0002554,2]
[328782313,1717787450769,-359.0355551,0.00025797,2]
[328782314,1717787450779,-380.5296931,0.00026,2]
[328782315,1717787450788,-11735.0,0.000262,5]
[328782316,1717787450798,-3654.33421931,0.00026303,2]
[328782317,1717787450808,-1012.12562752,0.000264,2]
[328782318,1717787450820,-2733.0,0.000264,2]
[328782319,1717787450829,-510.86920424,0.00026625,2]
[328782320,1717787450839,-839.74,0.00026935,2]
[328782321,1717787450848,-17459.21988457,0.00026993,2]
[328782322,1717787450858,-882.71956304,0.00027,2]
[328782323,1717787450868,-1300.0,0.00027,2]
[328782324,1717787450877,-200.0,0.00027,2]
[328782325,1717787450887,-2425.90027093,0.00027015,2]
[328782326,1717787450896,-152.0,0.00027161,3]
[328782327,1717787450907,-2011.37343874,0.000272,2]
[328782328,1717787450916,-218.09054492,0.00027233,2]
[328782329,1717787450925,-809.5948544,0.0002739,2]
[328782330,1717787450939,-539.01493639,0.00027397,2]
[328782331,1717787450949,-716.03,0.00027397,10]
[328782332,1717787450959,-596.69,0.00027397,10]
[328782333,1717787450970,-1500.0,0.000274,2]
[328782334,1717787450980,-1000.0,0.000274,2]
[328782335,1717787450989,-910.47351509,0.00027498,2]
[328782336,1717787451000,-526.07,0.00027534,2]
[328782337,1717787451010,-525.83,0.00027534,2]
[328782338,1717787451020,-152.84,0.00027534,2]
[328782339,1717787451030,-430.38,0.00027534,2]
[328782340,1717787451040,-152.49,0.00027534,2]
[328782341,1717787451050,-164.1,0.00027534,2]
[328782342,1717787451061,-359.94,0.00027534,2]
[328782343,1717787451073,-526.07,0.00027534,2]
[328782344,1717787451083,-150.0,0.00027534,2]
[328782345,1717787451094,-422.39,0.00027534,2]
[328782346,1717787451105,-353.2,0.00027534,2]
[328782347,1717787451115,-164.1,0.00027534,2]
[328782348,1717787451125,-150.0,0.00027534,2]
[328782349,1717787451135,-150.0,0.00027534,2]
[328782350,1717787451145,-353.2,0.00027534,2]
[328782351,1717787451155,-164.1,0.00027534,2]
[328782352,1717787451166,-150.0,0.00027534,2]
[328782353,1717787451178,-526.07,0.00027534,2]
[328782354,1717787451188,-422.39,0.00027534,2]
[328782355,1717787451198,-150.0,0.00027534,2]
[328782356,1717787451208,-422.39,0.00027534,2]
[328782357,1717787451219,-353.2,0.00027534,2]
[328782358,1717787451229,-164.1,0.00027534,2]
[328782359,1717787451239,-526.07,0.00027534,2]
[328782360,1717787451250,-150.0,0.00027534,2]
[328782361,1717787451262,-150.0,0.00027534,2]
[328782362,1717787451271,-164.1,0.00027534,2]
[328782364,1717787451281,-353.2,0.00027534,2]
[328782366,1717787451291,-524.46,0.00027534,2]
[328782367,1717787451300,-150.0,0.00027534,2]
[328782368,1717787451313,-421.63,0.00027534,2]
[328782369,1717787451324,-353.2,0.00027534,2]
[328782370,1717787451344,-223.33,0.00027534,2]
[328782371,1717787451357,-1397.49,0.0002759,2]
[328782372,1717787451366,-1500.0,0.000277,2]
[328782373,1717787451376,-950.0,0.00027746,2]
[328782374,1717787451386,-150.0,0.00027899,7]
[328782375,1717787451398,-33550.86505842,0.000279,10]
[328782376,1717787451420,-1000.0,0.00027957,2]
[328782377,1717787451432,-253.597094,0.00027992,2]
[328782378,1717787451442,-164.653403,0.00027992,2]
[328782379,1717787451452,-154.36,0.00027992,2]
[328782380,1717787451462,-173.245003,0.00027992,2]
[328782381,1717787451472,-1041.958199,0.00027992,2]
[328782382,1717787451482,-159.828432,0.00027992,2]
[328782383,1717787451492,-191.362027,0.00027992,2]
[328782384,1717787451502,-1161.492751,0.00027992,2]
[328782385,1717787451512,-1786.370375,0.00027992,2]
[328782386,1717787451523,-183.720463,0.00027992,2]
[328782387,1717787451532,-712.111734,0.00027992,2]
[328782388,1717787451542,-500.0,0.00028,2]
[328782389,1717787451552,-525.0,0.00028,7]
[328782390,1717787451564,-191.9267928,0.00028,2]
[328782391,1717787451574,-191.9267928,0.00028,2]
[328782392,1717787451584,-191.9267928,0.00028,2]
[328782393,1717787451594,-191.9267928,0.00028,2]
[328782394,1717787451603,-191.9267928,0.00028,2]
[328782395,1717787451614,-873.01,0.00028082,2]
[328782396,1717787451624,-831.18,0.00028082,2]
[328782397,1717787451635,-873.01,0.00028082,2]
[328782398,1717787451644,-873.01,0.00028082,2]
[328782399,1717787451654,-592.79,0.00028082,2]
[328782400,1717787451664,-151.0,0.00028101,4]
[328782401,1717787451674,-3654.33421931,0.00028101,2]
[328782402,1717787451684,-1000.0,0.000282,2]
[328782403,1717787451694,-3738.377,0.00028236,2]
[328782404,1717787451704,-5152.0,0.00028236,2]
[328782405,1717787451713,-38034.0,0.00028236,2]
[328782406,1717787451723,-1471.0,0.00028236,2]
[328782407,1717787451733,-1064.0,0.00028252,2]
[328782408,1717787451745,-1041.958199,0.00028342,2]
[328782409,1717787451755,-1161.492751,0.00028342,2]
[328782410,1717787451765,-1786.370375,0.00028342,2]
[328782411,1717787451775,-712.111734,0.00028342,2]
[328782412,1717787451785,-525.57,0.00028356,2]
[328782413,1717787451794,-151.75,0.00028356,2]
[328782414,1717787451806,-352.88,0.00028356,2]
[328782415,1717787451821,-150.0,0.00028356,2]
[328782416,1717787451832,-17459.21988457,0.00028447,2]
[328782417,1717787451842,-1000.0,0.000285,2]
[328782418,1717787451852,-151.0,0.00028674,2]
[328782419,1717787451862,-159.828432,0.00028692,2]
[328782420,1717787451872,-1041.958199,0.00028692,2]
[328782421,1717787451882,-1161.492751,0.00028692,2]
[328782422,1717787451891,-1786.370375,0.00028692,2]
[328782423,1717787451901,-712.111734,0.00028692,2]
[328782424,1717787451911,-284.90282473,0.0002871,2]
[328782425,1717787451921,-217.30936521,0.00028769,2]
[328782426,1717787451931,-300.0,0.000289,10]
[328782427,1717787451940,-3000.0,0.00028912,2]
[328782428,1717787451950,-150.0,0.00028929,10]
[328782429,1717787451960,-150.0,0.00028929,10]
[328782430,1717787451970,-150.0,0.00028929,10]
[328782431,1717787451979,-85631.52646467,0.0002893,7]
[328782432,1717787451988,-23709.18174875,0.0002898,2]
[328782433,1717787451998,-356.11576987,0.0002899,2]
[328782434,1717787452007,-150.0,0.00028999,21]
[328782435,1717787452017,-8391.58931594,0.00029,2]
[328782436,1717787452027,-5000.0,0.00029,2]
[328782437,1717787452037,-1350.0,0.00029,2]
[328782438,1717787452046,-9502.53927096,0.00029,2]
[328782439,1717787452056,-2000.0,0.00029,2]
[328782440,1717787452068,-200.0,0.00029,2]
[328782441,1717787452078,-2000.0,0.00029,2]
[328782442,1717787452087,-200.0,0.00029,2]
[328782443,1717787452096,-418.19094584,0.00029,2]
[328782444,1717787452106,-418.19094584,0.00029,2]
[328782445,1717787452115,-418.19094584,0.00029,2]
[328782446,1717787452124,-1041.958199,0.00029042,2]
[328782447,1717787452134,-1161.492751,0.00029042,2]
[328782448,1717787452143,-1786.370375,0.00029042,2]
[328782449,1717787452153,-712.111734,0.00029042,2]
[328782450,1717787452166,-150.0,0.00029129,10]
[328782451,1717787452176,-150.0,0.00029129,10]
[328782452,1717787452185,-91008.8647213,0.0002913,10]
[328782453,1717787452195,-151.35,0.00029178,2]
[328782454,1717787452206,-839.74,0.00029199,2]
[328782455,1717787452216,-150.0,0.0002922,2]
[328782456,1717787452226,-150.0,0.00029234,2]
[328782457,1717787452236,-178.70903807,0.0002924,2]
[328782458,1717787452248,-230.27760584,0.00029252,2]
[328782459,1717787452259,-2000.0,0.0002929,2]
[328782460,1717787452268,-200.0,0.0002929,2]
[328782461,1717787452276,-150.0,0.0002929,2]
[328782462,1717787452484,-2000.0,0.0002929,2]
[328782463,1717787452493,-200.0,0.0002929,2]
[328782464,1717787452503,-215.70059725,0.00029297,2]
[328782465,1717787452514,-166.65534303,0.00029375,2]
[328782466,1717787452524,-151.52619596,0.00029375,2]
[328782467,1717787452535,-150.0,0.00029379,2]
[328782468,1717787452545,-164.18908491,0.00029381,2]
[328782469,1717787452555,-154.36,0.00029392,2]
[328782470,1717787452568,-173.245003,0.00029392,2]
[328782471,1717787452578,-159.828432,0.00029392,2]
[328782472,1717787452587,-191.362027,0.00029392,2]
[328782473,1717787452596,-183.720463,0.00029392,2]
[328782474,1717787452607,-1041.958199,0.00029392,2]
[328782475,1717787452616,-1161.492751,0.00029392,2]
[328782476,1717787452626,-1786.370375,0.00029392,2]
[328782477,1717787452635,-712.111734,0.00029392,2]
[328782478,1717787452645,-300.0,0.00029393,2]
[328782479,1717787452656,-150.0,0.00029394,2]
[328782480,1717787452666,-1218.0,0.000294,2]
[328782481,1717787452676,-150.0,0.00029408,2]
[328782482,1717787452685,-230.27760584,0.00029408,2]
[328782483,1717787452695,-150.0,0.00029412,2]
[328782484,1717787452705,-230.27760584,0.00029435,2]
[328782485,1717787452715,-150.0,0.00029441,2]
[328782486,1717787452724,-166.01248567,0.00029452,2]
[328782487,1717787452734,-150.0,0.0002946,2]
[328782488,1717787452744,-168.28119332,0.00029464,2]
[328782489,1717787452759,-150.0,0.00029494,2]
[328782490,1717787452778,-215.70059725,0.00029499,2]
[328782491,1717787452795,-665.066268,0.000295,2]
[328782492,1717787452804,-300.0,0.000295,10]
[328782493,1717787452815,-154.3370845,0.00029524,2]
[328782494,1717787452824,-230.27760584,0.00029526,2]
[328782495,1717787452835,-150.0,0.00029531,2]
[328782496,1717787452844,-150.0,0.00029571,2]
[328782497,1717787452854,-2000.0,0.00029583,2]
[328782498,1717787452863,-200.0,0.00029583,2]
[328782499,1717787452873,-2000.0,0.00029583,2]
[328782500,1717787452882,-200.0,0.00029583,2]
[328782501,1717787452892,-500.0,0.00029589,4]
[328782502,1717787452901,-500.0,0.00029589,4]
[328782503,1717787452911,-500.0,0.00029589,4]
[328782504,1717787452921,-500.0,0.00029589,4]
[328782505,1717787452931,-500.0,0.00029589,4]
[328782506,1717787452940,-500.0,0.00029589,4]
[328782507,1717787452949,-500.0,0.00029589,4]
[328782508,1717787452959,-500.0,0.00029589,4]
[328782509,1717787452968,-500.0,0.00029589,4]
[328782510,1717787452977,-500.0,0.00029589,4]
[328782511,1717787452986,-500.0,0.00029589,4]
[328782512,1717787452996,-500.0,0.00029589,4]
[328782513,1717787453005,-500.0,0.00029589,4]
[328782514,1717787453014,-500.0,0.00029589,4]
[328782515,1717787453024,-500.0,0.00029589,4]
[328782516,1717787453033,-500.0,0.00029589,4]
[328782517,1717787453043,-500.0,0.00029589,4]
[328782518,1717787453052,-500.0,0.00029589,4]
[328782519,1717787453061,-500.0,0.00029589,4]
[328782520,1717787453072,-500.0,0.00029589,4]
[328782521,1717787453082,-500.0,0.00029589,4]
[328782522,1717787453091,-500.0,0.00029589,4]
[328782523,1717787453100,-500.0,0.00029589,4]
[328782524,1717787453110,-442.46852946,0.00029589,4]
[328782525,1717787453119,-646.8,0.00029589,4]
[328782526,1717787453128,-646.8,0.00029589,4]
[328782527,1717787453138,-646.8,0.00029589,4]
[328782528,1717787453147,-646.8,0.00029589,4]
[328782529,1717787453156,-646.8,0.00029589,4]
[328782530,1717787453166,-646.8,0.00029589,4]
[328782531,1717787453179,-646.8,0.00029589,4]
[328782532,1717787453189,-646.8,0.00029589,4]
[328782533,1717787453198,-646.8,0.00029589,4]
[328782534,1717787453209,-646.8,0.00029589,4]
[328782535,1717787453218,-646.8,0.00029589,4]
[328782536,1717787453227,-646.8,0.00029589,4]
[328782537,1717787453236,-646.8,0.00029589,4]
[328782538,1717787453246,-646.8,0.00029589,4]
[328782539,1717787453257,-646.8,0.00029589,4]
[328782540,1717787453267,-646.8,0.00029589,4]
[328782541,1717787453276,-646.8,0.00029589,4]
[328782542,1717787453286,-646.8,0.00029589,4]
[328782543,1717787453296,-646.8,0.00029589,4]
[328782544,1717787453305,-646.8,0.00029589,4]
[328782545,1717787453316,-646.8,0.00029589,4]
[328782546,1717787453326,-646.8,0.00029589,4]
[328782547,1717787453335,-646.8,0.00029589,4]
[328782548,1717787453345,-646.87135279,0.00029589,4]
[328782549,1717787453354,-230.27760584,0.0002959,2]
[328782550,1717787453364,-997.599402,0.000296,2]
[328782551,1717787453373,-300.0,0.000296,10]
[328782552,1717787453383,-155.75987117,0.00029608,2]
[328782553,1717787453392,-150.0,0.00029658,2]
[328782554,1717787453402,-166.66666666,0.00029671,2]
[328782555,1717787453412,-150.0,0.00029683,2]
[328782556,1717787453422,-152.33511147,0.00029691,2]
[328782557,1717787453434,-1330.132536,0.000297,2]
[328782558,1717787453444,-4008.9909,0.000297,2]
[328782559,1717787453453,-4000.0,0.000297,2]
[328782560,1717787453462,-4000.0,0.000297,2]
[328782561,1717787453471,-4000.0,0.000297,2]
[328782562,1717787453481,-4000.0,0.000297,2]
[328782563,1717787453490,-300.0,0.000297,10]
[328782564,1717787453500,-1141.0,0.000297,2]
[328782565,1717787453509,-280.0,0.000297,2]
[328782566,1717787453518,-150.0,0.00029703,2]
[328782567,1717787453528,-155.03171412,0.00029712,2]
[328782568,1717787453538,-150.0,0.00029721,2]
[328782569,1717787453547,-215.70059725,0.00029739,2]
[328782570,1717787453557,-151.52619596,0.00029753,2]
[328782571,1717787453570,-150.0,0.00029756,2]
[328782572,1717787453580,-500.0,0.0002976,2]
[328782573,1717787453589,-200.0,0.0002976,2]
[328782574,1717787453599,-359.0355551,0.00029763,2]
[328782575,1717787453608,-342.88674896,0.00029763,7]
[328782576,1717787453618,-342.88674896,0.00029763,7]
[328782577,1717787453628,-342.88674896,0.00029763,7]
[328782578,1717787453637,-342.88674896,0.00029763,7]
[328782579,1717787453647,-342.88674896,0.00029763,7]
[328782580,1717787453657,-342.88674896,0.00029763,7]
[328782581,1717787453666,-342.88674896,0.00029763,7]
[328782582,1717787453676,-342.88674896,0.00029763,7]
[328782583,1717787453685,-342.88674896,0.00029763,7]
[328782584,1717787453695,-342.88674896,0.00029763,7]
[328782585,1717787453704,-342.88674896,0.00029763,7]
[328782586,1717787453714,-342.88674896,0.00029763,7]
[328782587,1717787453723,-342.88674896,0.00029763,7]
[328782588,1717787453733,-342.88674896,0.00029763,7]